[Event "Late-Titled-Tuesday-Blitz-February-20-2024"]
[Site "Chess.com"]
[Date "2024.02.20"]
[Round "4"]
[White "maroro07"]
[Black "boguszp"]
[Result "1-0"]
[WhiteElo "2410"]
[BlackElo "2009"]
[TimeControl "180+1"]
[EndTime "14:37:45 PST"]
[Termination "maroro07 won by checkmate"]

1. e4 {[%clk 0:03:00.9]} 1... e6 {[%clk 0:02:59.9]} 2. d3 {[%clk 0:02:53.9]}
2... d5 {[%clk 0:03:00]} 3. Nd2 {[%clk 0:02:54.5]} 3... c5 {[%clk 0:02:59.5]} 4.
Ngf3 {[%clk 0:02:53.8]} 4... Nc6 {[%clk 0:02:57.4]} 5. g3 {[%clk 0:02:53.8]}
5... Bd6 {[%clk 0:02:56.7]} 6. Bg2 {[%clk 0:02:53]} 6... Nge7 {[%clk 0:02:56.8]}
7. O-O {[%clk 0:02:49.6]} 7... f6 {[%clk 0:02:55.2]} 8. Re1 {[%clk 0:02:40.2]}
8... Bd7 {[%clk 0:02:53.9]} 9. exd5 {[%clk 0:02:37.9]} 9... exd5 {[%clk
0:02:53.3]} 10. c4 {[%clk 0:02:36.6]} 10... d4 {[%clk 0:02:43]} 11. Ne4 {[%clk
0:02:34.9]} 11... Bc7 {[%clk 0:02:15.3]} 12. Nxc5 {[%clk 0:02:32]} 12... O-O
{[%clk 0:02:12.2]} 13. Nxb7 {[%clk 0:02:14.5]} 13... Qb8 {[%clk 0:02:05.4]} 14.
Nc5 {[%clk 0:02:13.9]} 14... Bg4 {[%clk 0:02:02]} 15. h3 {[%clk 0:02:05.2]}
15... Bf5 {[%clk 0:01:47.4]} 16. Nh4 {[%clk 0:01:51]} 16... Bc8 {[%clk
0:01:36.1]} 17. Ne6 {[%clk 0:01:38.9]} 17... Bxe6 {[%clk 0:01:28.9]} 18. Rxe6
{[%clk 0:01:39.8]} 18... Qc8 {[%clk 0:01:24.9]} 19. Rxc6 {[%clk 0:01:34.4]}
19... Nxc6 {[%clk 0:01:22.4]} 20. Bxc6 {[%clk 0:01:35.3]} 20... Rb8 {[%clk
0:01:21.3]} 21. Bd5+ {[%clk 0:01:32.5]} 21... Kh8 {[%clk 0:01:20.3]} 22. Qh5
{[%clk 0:01:24.7]} 22... Qe8 {[%clk 0:01:16.8]} 23. Qxe8 {[%clk 0:01:24.6]}
23... Rfxe8 {[%clk 0:01:15.3]} 24. Kf1 {[%clk 0:01:25.3]} 24... Ba5 {[%clk
0:01:10.7]} 25. Nf3 {[%clk 0:01:21.5]} 25... Re7 {[%clk 0:01:07.3]} 26. a3
{[%clk 0:01:11.7]} 26... Rbe8 {[%clk 0:01:06.7]} 27. b4 {[%clk 0:01:08.4]} 27...
Bb6 {[%clk 0:01:05.5]} 28. Bd2 {[%clk 0:00:57.6]} 28... a5 {[%clk 0:01:00.3]}
29. c5 {[%clk 0:00:54.7]} 29... Bc7 {[%clk 0:00:56.9]} 30. b5 {[%clk 0:00:52.5]}
30... Rb8 {[%clk 0:00:50.2]} 31. b6 {[%clk 0:00:52.3]} 31... Bxb6 {[%clk
0:00:49.2]} 32. cxb6 {[%clk 0:00:51.6]} 32... Rxb6 {[%clk 0:00:49.8]} 33. Bxa5
{[%clk 0:00:44.2]} 33... Ra6 {[%clk 0:00:47.3]} 34. Bb4 {[%clk 0:00:42.9]} 34...
Rea7 {[%clk 0:00:45.2]} 35. Rc1 {[%clk 0:00:40.4]} 35... g6 {[%clk 0:00:34.9]}
36. Rc8+ {[%clk 0:00:37.7]} 36... Kg7 {[%clk 0:00:34.7]} 37. Bf8+ {[%clk
0:00:38.4]} 37... Kh8 {[%clk 0:00:30.7]} 38. Bh6# {[%clk 0:00:38.5]} 1-0

[Event "Late-Titled-Tuesday-Blitz-February-20-2024"]
[Site "Chess.com"]
[Date "2024.02.20"]
[Round "4"]
[White "slavenok"]
[Black "VincentKeymer"]
[Result "1/2-1/2"]
[WhiteElo "2753"]
[BlackElo "3047"]
[TimeControl "180+1"]
[EndTime "14:37:46 PST"]
[Termination "Game drawn by repetition"]

1. e4 {[%clk 0:03:00.9]} 1... c6 {[%clk 0:02:58.6]} 2. d4 {[%clk 0:03:01.1]}
2... d5 {[%clk 0:02:59.5]} 3. exd5 {[%clk 0:03:01.7]} 3... cxd5 {[%clk
0:03:00.4]} 4. Nf3 {[%clk 0:03:02.4]} 4... Nc6 {[%clk 0:02:59.9]} 5. c4 {[%clk
0:03:03.1]} 5... Nf6 {[%clk 0:02:59.9]} 6. Nc3 {[%clk 0:03:03.7]} 6... a6 {[%clk
0:02:59.7]} 7. cxd5 {[%clk 0:03:04.2]} 7... Nxd5 {[%clk 0:03:00.6]} 8. Bc4
{[%clk 0:03:04.6]} 8... e6 {[%clk 0:03:01.1]} 9. O-O {[%clk 0:03:04.1]} 9... Be7
{[%clk 0:02:57.9]} 10. Be3 {[%clk 0:03:04.5]} 10... O-O {[%clk 0:02:49.4]} 11.
Rc1 {[%clk 0:03:03.3]} 11... Nxc3 {[%clk 0:02:33.7]} 12. bxc3 {[%clk 0:03:01.9]}
12... b5 {[%clk 0:02:33.6]} 13. Bd3 {[%clk 0:02:59.5]} 13... Bb7 {[%clk
0:02:33.2]} 14. Bb1 {[%clk 0:02:51.6]} 14... Rc8 {[%clk 0:02:28.2]} 15. h3
{[%clk 0:02:45.7]} 15... Bf6 {[%clk 0:02:24.4]} 16. Qd3 {[%clk 0:02:41.9]} 16...
g6 {[%clk 0:02:23.9]} 17. Rfd1 {[%clk 0:02:38.9]} 17... Qd5 {[%clk 0:02:18.5]}
18. Bh6 {[%clk 0:02:35.5]} 18... Rfd8 {[%clk 0:02:17.9]} 19. Qe2 {[%clk
0:02:33.4]} 19... Ne7 {[%clk 0:02:13]} 20. Be3 {[%clk 0:02:28.4]} 20... Nf5
{[%clk 0:02:12]} 21. Bf4 {[%clk 0:02:24]} 21... Kg7 {[%clk 0:01:49.9]} 22. Qd2
{[%clk 0:02:19.1]} 22... b4 {[%clk 0:01:33.2]} 23. Bxf5 {[%clk 0:02:15.4]} 23...
Qxf5 {[%clk 0:01:32.4]} 24. Bh6+ {[%clk 0:02:13.1]} 24... Kg8 {[%clk 0:01:31.7]}
25. Nh2 {[%clk 0:02:10.2]} 25... bxc3 {[%clk 0:01:21.7]} 26. Rxc3 {[%clk
0:02:11.1]} 26... Rxd4 {[%clk 0:01:08.1]} 27. Rxc8+ {[%clk 0:02:06.2]} 27...
Bxc8 {[%clk 0:01:09]} 28. Qc1 {[%clk 0:02:06.6]} 28... Rxd1+ {[%clk 0:01:03]}
29. Qxd1 {[%clk 0:02:07.5]} 29... Qd5 {[%clk 0:01:03.3]} 30. Qa4 {[%clk
0:02:02.7]} 30... Qd7 {[%clk 0:00:59]} 31. Qc4 {[%clk 0:01:59.9]} 31... Bg7
{[%clk 0:00:57.4]} 32. Bxg7 {[%clk 0:01:54.8]} 32... Kxg7 {[%clk 0:00:58.3]} 33.
Ng4 {[%clk 0:01:55.3]} 33... f6 {[%clk 0:00:58.5]} 34. Qf4 {[%clk 0:01:50.6]}
34... Qe7 {[%clk 0:00:26]} 35. Qh6+ {[%clk 0:01:50.3]} 35... Kg8 {[%clk
0:00:25]} 36. Qh4 {[%clk 0:01:48.5]} 36... e5 {[%clk 0:00:20.8]} 37. Nxf6+
{[%clk 0:01:45.4]} 37... Kf7 {[%clk 0:00:20.1]} 38. Qxh7+ {[%clk 0:01:41.1]}
38... Kxf6 {[%clk 0:00:20.5]} 39. Qh8+ {[%clk 0:01:41.7]} 39... Kg5 {[%clk
0:00:17.2]} 40. Qxc8 {[%clk 0:01:42.4]} 40... Qd6 {[%clk 0:00:17.8]} 41. Qg4+
{[%clk 0:01:39.5]} 41... Kh6 {[%clk 0:00:17.9]} 42. g3 {[%clk 0:01:39.8]} 42...
a5 {[%clk 0:00:14.9]} 43. h4 {[%clk 0:01:39.9]} 43... Qd2 {[%clk 0:00:13.3]} 44.
a4 {[%clk 0:01:36.5]} 44... Qb4 {[%clk 0:00:09.7]} 45. Qg5+ {[%clk 0:01:35.4]}
45... Kh7 {[%clk 0:00:10.2]} 46. Qxe5 {[%clk 0:01:34.4]} 46... Qxa4 {[%clk
0:00:10.2]} 47. h5 {[%clk 0:01:34.8]} 47... Qd1+ {[%clk 0:00:09.3]} 48. Kg2
{[%clk 0:01:33.1]} 48... Qxh5 {[%clk 0:00:10.2]} 49. Qe7+ {[%clk 0:01:31.4]}
49... Kg8 {[%clk 0:00:10.2]} 50. Qe8+ {[%clk 0:01:31.3]} 50... Kg7 {[%clk
0:00:10.8]} 51. Qe7+ {[%clk 0:01:31.7]} 51... Kg8 {[%clk 0:00:11.4]} 52. Qe8+
{[%clk 0:01:32.1]} 52... Kg7 {[%clk 0:00:12.1]} 53. Qe7+ {[%clk 0:01:32.5]}
53... Kg8 {[%clk 0:00:12.6]} 1/2-1/2

[Event "Late-Titled-Tuesday-Blitz-February-20-2024"]
[Site "Chess.com"]
[Date "2024.02.20"]
[Round "4"]
[White "jk13"]
[Black "andy_rekt"]
[Result "1-0"]
[WhiteElo "2711"]
[BlackElo "2458"]
[TimeControl "180+1"]
[EndTime "14:37:52 PST"]
[Termination "jk13 won by resignation"]

1. e4 {[%clk 0:03:00.9]} 1... e6 {[%clk 0:02:58.1]} 2. d4 {[%clk 0:03:00.5]}
2... d5 {[%clk 0:02:58.3]} 3. Nd2 {[%clk 0:03:01.2]} 3... c5 {[%clk 0:02:57]} 4.
exd5 {[%clk 0:03:00.7]} 4... Qxd5 {[%clk 0:02:57.2]} 5. Ngf3 {[%clk 0:03:01.6]}
5... cxd4 {[%clk 0:02:57]} 6. Bc4 {[%clk 0:03:02.2]} 6... Qd7 {[%clk 0:02:55.2]}
7. O-O {[%clk 0:03:03.1]} 7... a6 {[%clk 0:02:53.5]} 8. Nb3 {[%clk 0:03:03.6]}
8... Nc6 {[%clk 0:02:49.8]} 9. Nbxd4 {[%clk 0:03:03.4]} 9... Nxd4 {[%clk
0:02:49.9]} 10. Nxd4 {[%clk 0:03:04.3]} 10... Nf6 {[%clk 0:02:46.9]} 11. c3
{[%clk 0:03:01.2]} 11... Qc7 {[%clk 0:02:47]} 12. Bb3 {[%clk 0:02:58.1]} 12...
Bd6 {[%clk 0:02:45]} 13. h3 {[%clk 0:02:57.9]} 13... O-O {[%clk 0:02:40.7]} 14.
Qf3 {[%clk 0:02:58.1]} 14... e5 {[%clk 0:02:29.6]} 15. Nc2 {[%clk 0:02:29.3]}
15... Bd7 {[%clk 0:02:18.8]} 16. Ne3 {[%clk 0:02:17.5]} 16... e4 {[%clk
0:02:11.9]} 17. Qe2 {[%clk 0:02:11.1]} 17... Bb5 {[%clk 0:01:51.4]} 18. Bc4
{[%clk 0:02:07.8]} 18... Bxc4 {[%clk 0:01:50]} 19. Nxc4 {[%clk 0:02:08.7]} 19...
b5 {[%clk 0:01:31]} 20. Nxd6 {[%clk 0:02:07.4]} 20... Qxd6 {[%clk 0:01:31.5]}
21. Be3 {[%clk 0:02:07.1]} 21... Rfe8 {[%clk 0:01:27.5]} 22. Rfd1 {[%clk
0:02:05]} 22... Qe6 {[%clk 0:01:26.2]} 23. a4 {[%clk 0:02:03.5]} 23... Rab8
{[%clk 0:01:20.4]} 24. axb5 {[%clk 0:02:00.6]} 24... axb5 {[%clk 0:01:21.3]} 25.
Ra7 {[%clk 0:01:56.6]} 25... Qb3 {[%clk 0:01:12.3]} 26. Rd6 {[%clk 0:01:34.7]}
26... Red8 {[%clk 0:01:05.1]} 27. Rxd8+ {[%clk 0:01:28.6]} 27... Rxd8 {[%clk
0:01:06]} 28. Rb7 {[%clk 0:01:29]} 28... h6 {[%clk 0:00:20.1]} 29. Qxb5 {[%clk
0:01:18.1]} 29... Qd1+ {[%clk 0:00:16.8]} 30. Kh2 {[%clk 0:01:17.7]} 30... Qc2
{[%clk 0:00:13.9]} 31. Qc4 {[%clk 0:01:09.6]} 31... Rf8 {[%clk 0:00:09.4]} 32.
Bc5 {[%clk 0:01:06.2]} 32... Qd2 {[%clk 0:00:09.3]} 33. Bxf8 {[%clk 0:01:01.3]}
33... Qf4+ {[%clk 0:00:07.2]} 34. Kg1 {[%clk 0:01:01.7]} 34... Qc1+ {[%clk
0:00:04.9]} 35. Qf1 {[%clk 0:01:02.3]} 35... Qd2 {[%clk 0:00:04.7]} 36. Bc5
{[%clk 0:01:00.3]} 1-0

[Event "Late-Titled-Tuesday-Blitz-February-20-2024"]
[Site "Chess.com"]
[Date "2024.02.20"]
[Round "4"]
[White "DeArron_Fox"]
[Black "Walter_White_Poland"]
[Result "1-0"]
[WhiteElo "2517"]
[BlackElo "2358"]
[TimeControl "180+1"]
[EndTime "14:37:58 PST"]
[Termination "DeArron_Fox won by resignation"]

1. d4 {[%clk 0:03:00.5]} 1... d5 {[%clk 0:02:57.8]} 2. c4 {[%clk 0:02:59.7]}
2... e6 {[%clk 0:02:57.3]} 3. Nc3 {[%clk 0:03:00.3]} 3... Nf6 {[%clk 0:02:57.7]}
4. cxd5 {[%clk 0:03:00.6]} 4... exd5 {[%clk 0:02:57.4]} 5. Bg5 {[%clk
0:03:01.1]} 5... c6 {[%clk 0:02:57.7]} 6. e3 {[%clk 0:03:01.6]} 6... Bf5 {[%clk
0:02:57.7]} 7. Qf3 {[%clk 0:03:01.2]} 7... Bg6 {[%clk 0:02:57.7]} 8. Bxf6 {[%clk
0:03:01.7]} 8... Qxf6 {[%clk 0:02:58.2]} 9. Qxf6 {[%clk 0:03:01.9]} 9... gxf6
{[%clk 0:02:59.1]} 10. Kd2 {[%clk 0:03:02.3]} 10... b5 {[%clk 0:02:59.2]} 11.
Bd3 {[%clk 0:02:59.9]} 11... Nd7 {[%clk 0:02:58.5]} 12. Nge2 {[%clk 0:02:56.8]}
12... a5 {[%clk 0:02:57.8]} 13. h4 {[%clk 0:02:42.7]} 13... h5 {[%clk
0:02:57.6]} 14. Nf4 {[%clk 0:02:31.4]} 14... Bxd3 {[%clk 0:02:49.5]} 15. Nxd3
{[%clk 0:02:18.1]} 15... Bd6 {[%clk 0:02:47.4]} 16. a4 {[%clk 0:01:47.9]} 16...
b4 {[%clk 0:02:43.4]} 17. Ne2 {[%clk 0:01:44.9]} 17... Ke7 {[%clk 0:02:28.9]}
18. Rac1 {[%clk 0:01:30.8]} 18... Rac8 {[%clk 0:02:28.3]} 19. b3 {[%clk
0:01:28.3]} 19... f5 {[%clk 0:02:19.3]} 20. Rc2 {[%clk 0:01:20.7]} 20... Nf6
{[%clk 0:02:18.3]} 21. f3 {[%clk 0:00:49.2]} 21... Rhg8 {[%clk 0:02:15.7]} 22.
Nef4 {[%clk 0:00:49.2]} 22... Kd7 {[%clk 0:01:48.4]} 23. Rhc1 {[%clk 0:00:47]}
23... Rc7 {[%clk 0:01:36.5]} 24. Ke2 {[%clk 0:00:32.6]} 24... Re8 {[%clk
0:01:23]} 25. Kf2 {[%clk 0:00:30.5]} 25... Rec8 {[%clk 0:01:15.8]} 26. Ne5+
{[%clk 0:00:26.3]} 26... Bxe5 {[%clk 0:01:15.3]} 27. dxe5 {[%clk 0:00:27.2]}
27... Ne8 {[%clk 0:01:10.6]} 28. Nxh5 {[%clk 0:00:27.1]} 28... c5 {[%clk
0:01:09.9]} 29. Nf4 {[%clk 0:00:22]} 29... d4 {[%clk 0:00:33.8]} 30. exd4 {[%clk
0:00:21.7]} 30... cxd4 {[%clk 0:00:34]} 31. Rxc7+ {[%clk 0:00:22.2]} 31... Rxc7
{[%clk 0:00:34.6]} 32. Rxc7+ {[%clk 0:00:22.8]} 32... Kxc7 {[%clk 0:00:35.2]}
33. h5 {[%clk 0:00:22.7]} 1-0

[Event "Late-Titled-Tuesday-Blitz-February-20-2024"]
[Site "Chess.com"]
[Date "2024.02.20"]
[Round "4"]
[White "gahryman"]
[Black "Firouzja2003"]
[Result "0-1"]
[WhiteElo "2693"]
[BlackElo "3108"]
[TimeControl "180+1"]
[EndTime "14:37:59 PST"]
[Termination "Firouzja2003 won on time"]

1. e4 {[%clk 0:03:00.9]} 1... e5 {[%clk 0:02:58.3]} 2. Nf3 {[%clk 0:03:00.6]}
2... Nc6 {[%clk 0:02:59]} 3. Bc4 {[%clk 0:03:00.4]} 3... Bc5 {[%clk 0:02:58.6]}
4. d3 {[%clk 0:02:56.1]} 4... d6 {[%clk 0:02:57]} 5. O-O {[%clk 0:02:56]} 5...
h6 {[%clk 0:02:56.7]} 6. c3 {[%clk 0:02:50.5]} 6... Qf6 {[%clk 0:02:55.7]} 7. b4
{[%clk 0:02:44]} 7... Bb6 {[%clk 0:02:55.7]} 8. a4 {[%clk 0:02:27.4]} 8... a6
{[%clk 0:02:55.9]} 9. Be3 {[%clk 0:02:21.3]} 9... Nge7 {[%clk 0:02:56.2]} 10.
Nbd2 {[%clk 0:02:07.9]} 10... Ng6 {[%clk 0:02:54.9]} 11. b5 {[%clk 0:02:03.4]}
11... axb5 {[%clk 0:02:40.4]} 12. Bxb5 {[%clk 0:02:03.1]} 12... Nf4 {[%clk
0:02:25.4]} 13. d4 {[%clk 0:01:39.7]} 13... O-O {[%clk 0:02:17.9]} 14. Nc4
{[%clk 0:00:45.3]} 14... Bg4 {[%clk 0:01:56.3]} 15. Bxc6 {[%clk 0:00:36.6]}
15... bxc6 {[%clk 0:01:56]} 16. dxe5 {[%clk 0:00:36.9]} 16... dxe5 {[%clk
0:01:53.1]} 17. Ncxe5 {[%clk 0:00:35.4]} 17... Bxf3 {[%clk 0:01:38.4]} 18. Qxf3
{[%clk 0:00:21]} 18... Bxe3 {[%clk 0:01:34]} 19. fxe3 {[%clk 0:00:20.6]} 19...
Nh3+ {[%clk 0:01:32.8]} 20. Qxh3 {[%clk 0:00:17.1]} 20... Qxe5 {[%clk
0:01:33.7]} 21. Qg3 {[%clk 0:00:13]} 21... Qxc3 {[%clk 0:01:29.6]} 22. Qxc7
{[%clk 0:00:13]} 22... Qxe3+ {[%clk 0:01:28.7]} 23. Kh1 {[%clk 0:00:13.1]} 23...
Qxe4 {[%clk 0:01:29.2]} 24. a5 {[%clk 0:00:13.3]} 24... Qc4 {[%clk 0:01:20.2]}
25. h3 {[%clk 0:00:12]} 25... Rfc8 {[%clk 0:01:19.8]} 26. Qe5 {[%clk 0:00:10]}
26... Re8 {[%clk 0:01:19.2]} 27. Qc7 {[%clk 0:00:10.1]} 27... Re2 {[%clk
0:01:18.1]} 28. a6 {[%clk 0:00:08.8]} 28... Qd5 {[%clk 0:01:14.8]} 29. Rg1
{[%clk 0:00:07.9]} 29... Re3 {[%clk 0:01:15.1]} 30. Kh2 {[%clk 0:00:07]} 30...
Rae8 {[%clk 0:00:57.2]} 31. a7 {[%clk 0:00:06.3]} 31... Rxh3+ {[%clk 0:00:57.4]}
32. gxh3 {[%clk 0:00:04.1]} 32... Re2+ {[%clk 0:00:57.4]} 33. Kg3 {[%clk
0:00:04.3]} 33... Qd3+ {[%clk 0:00:55.6]} 34. Kh4 {[%clk 0:00:03.5]} 34... g5+
{[%clk 0:00:55.9]} 35. Kg4 {[%clk 0:00:03]} 35... Re4+ {[%clk 0:00:54.5]} 36.
Kf5 {[%clk 0:00:01.1]} 36... Qf3+ {[%clk 0:00:51.9]} 0-1

[Event "Late-Titled-Tuesday-Blitz-February-20-2024"]
[Site "Chess.com"]
[Date "2024.02.20"]
[Round "4"]
[White "dropstoneDP"]
[Black "SnekkerAndersen"]
[Result "1/2-1/2"]
[WhiteElo "3005"]
[BlackElo "2632"]
[TimeControl "180+1"]
[EndTime "14:37:59 PST"]
[Termination "Game drawn by agreement"]

1. e4 {[%clk 0:03:00.9]} 1... d6 {[%clk 0:02:57.4]} 2. d4 {[%clk 0:03:00.7]}
2... Nf6 {[%clk 0:02:57.3]} 3. Nc3 {[%clk 0:03:00.5]} 3... e5 {[%clk 0:02:57.9]}
4. Nge2 {[%clk 0:03:00.7]} 4... exd4 {[%clk 0:02:58.3]} 5. Nxd4 {[%clk
0:03:00.6]} 5... Be7 {[%clk 0:02:59]} 6. g3 {[%clk 0:03:00.7]} 6... O-O {[%clk
0:02:59.4]} 7. Bg2 {[%clk 0:03:00.9]} 7... Nbd7 {[%clk 0:02:59.2]} 8. O-O {[%clk
0:03:01.2]} 8... Re8 {[%clk 0:02:59.1]} 9. a4 {[%clk 0:03:00.8]} 9... c6 {[%clk
0:02:58.2]} 10. a5 {[%clk 0:03:00.7]} 10... Nc5 {[%clk 0:02:57.9]} 11. h3 {[%clk
0:02:59.5]} 11... Bf8 {[%clk 0:02:58]} 12. Re1 {[%clk 0:02:59.7]} 12... Qc7
{[%clk 0:02:55.7]} 13. Bf4 {[%clk 0:03:00.2]} 13... Ne6 {[%clk 0:02:54.4]} 14.
Nxe6 {[%clk 0:02:59.4]} 14... Bxe6 {[%clk 0:02:55.3]} 15. e5 {[%clk 0:02:59.4]}
15... dxe5 {[%clk 0:02:37.4]} 16. Bxe5 {[%clk 0:03:00.3]} 16... Qd8 {[%clk
0:02:37]} 17. Qxd8 {[%clk 0:02:57.8]} 17... Raxd8 {[%clk 0:02:36.4]} 18. Bxf6
{[%clk 0:02:58.4]} 18... gxf6 {[%clk 0:02:37.2]} 19. a6 {[%clk 0:02:59]} 19...
Re7 {[%clk 0:02:14.4]} 20. Ne4 {[%clk 0:02:51.4]} 20... Kg7 {[%clk 0:02:09.5]}
21. Nc5 {[%clk 0:02:48.8]} 21... b6 {[%clk 0:02:07.5]} 22. Nxe6+ {[%clk
0:02:48.3]} 22... Rxe6 {[%clk 0:02:07.7]} 23. Rxe6 {[%clk 0:02:45.2]} 23... fxe6
{[%clk 0:02:08.6]} 24. Bxc6 {[%clk 0:02:45.1]} 24... Rd2 {[%clk 0:02:02]} 25.
Be4 {[%clk 0:02:18.6]} 25... Bc5 {[%clk 0:01:59.8]} 26. Rf1 {[%clk 0:02:18]}
26... f5 {[%clk 0:01:58.5]} 27. Bd3 {[%clk 0:02:17.5]} 27... Bd4 {[%clk
0:01:59.2]} 28. g4 {[%clk 0:02:07.9]} 28... Kf6 {[%clk 0:01:37.6]} 29. gxf5
{[%clk 0:02:07.1]} 29... exf5 {[%clk 0:01:37.8]} 30. b4 {[%clk 0:02:06.8]} 30...
Kg5 {[%clk 0:01:30.1]} 31. Kg2 {[%clk 0:02:03.5]} 31... Kf4 {[%clk 0:01:30.1]}
32. h4 {[%clk 0:01:25.9]} 32... h6 {[%clk 0:01:29.2]} 33. Kh3 {[%clk 0:01:13.1]}
33... Rxf2 {[%clk 0:01:25.9]} 34. Rxf2+ {[%clk 0:01:13.1]} 34... Bxf2 {[%clk
0:01:25.4]} 35. Kg2 {[%clk 0:01:13.5]} 35... Be1 {[%clk 0:01:25.4]} 36. h5
{[%clk 0:00:39.7]} 36... Bxb4 {[%clk 0:01:24.5]} 37. Bb5 {[%clk 0:00:40.1]}
37... Ke3 {[%clk 0:01:21.2]} 38. Bd7 {[%clk 0:00:22]} 38... f4 {[%clk
0:01:17.9]} 39. Bc6 {[%clk 0:00:21.6]} 39... Be7 {[%clk 0:01:08.1]} 40. Bd5
{[%clk 0:00:17.6]} 40... Kd4 {[%clk 0:01:08.4]} 41. Bc6 {[%clk 0:00:14.3]}
1/2-1/2

[Event "Late-Titled-Tuesday-Blitz-February-20-2024"]
[Site "Chess.com"]
[Date "2024.02.20"]
[Round "4"]
[White "Bala-Afiada"]
[Black "Agentxya"]
[Result "1-0"]
[WhiteElo "1970"]
[BlackElo "2227"]
[TimeControl "180+1"]
[EndTime "14:37:59 PST"]
[Termination "Bala-Afiada won by checkmate"]

1. d4 {[%clk 0:02:55.2]} 1... d5 {[%clk 0:02:59.7]} 2. c4 {[%clk 0:02:54.9]}
2... c6 {[%clk 0:02:59.8]} 3. Qc2 {[%clk 0:02:52.5]} 3... dxc4 {[%clk
0:02:57.4]} 4. Qxc4 {[%clk 0:02:52.4]} 4... Nf6 {[%clk 0:02:56.7]} 5. Nf3 {[%clk
0:02:52.5]} 5... Bf5 {[%clk 0:02:50.5]} 6. g3 {[%clk 0:02:40.3]} 6... e6 {[%clk
0:02:50.3]} 7. Bg2 {[%clk 0:02:38.1]} 7... Be7 {[%clk 0:02:50.5]} 8. O-O {[%clk
0:02:38.2]} 8... O-O {[%clk 0:02:46.4]} 9. Nc3 {[%clk 0:02:34.9]} 9... Nbd7
{[%clk 0:02:43]} 10. Re1 {[%clk 0:02:30.5]} 10... Nb6 {[%clk 0:02:42.5]} 11. Qb3
{[%clk 0:02:30.6]} 11... Ne4 {[%clk 0:02:39.4]} 12. Bf4 {[%clk 0:02:06.2]} 12...
Bf6 {[%clk 0:02:30.3]} 13. Rad1 {[%clk 0:01:53.4]} 13... Qe7 {[%clk 0:02:29.5]}
14. Be5 {[%clk 0:01:52.1]} 14... Rfd8 {[%clk 0:02:11.2]} 15. Bxf6 {[%clk
0:01:31.1]} 15... Qxf6 {[%clk 0:02:10]} 16. Ne5 {[%clk 0:01:31.3]} 16... Nxc3
{[%clk 0:02:00.7]} 17. bxc3 {[%clk 0:01:26.6]} 17... h6 {[%clk 0:01:54.2]} 18.
e4 {[%clk 0:01:24.1]} 18... Bh7 {[%clk 0:01:54.4]} 19. Ng4 {[%clk 0:01:16.8]}
19... Qe7 {[%clk 0:01:44.6]} 20. Ne3 {[%clk 0:00:54.7]} 20... Rac8 {[%clk
0:01:28.4]} 21. d5 {[%clk 0:00:51.1]} 21... cxd5 {[%clk 0:01:20.8]} 22. exd5
{[%clk 0:00:51.3]} 22... Rd6 {[%clk 0:00:51.8]} 23. dxe6 {[%clk 0:00:47.2]}
23... Rxe6 {[%clk 0:00:49.7]} 24. Bh3 {[%clk 0:00:32.7]} 24... Rcc6 {[%clk
0:00:34.8]} 25. Bxe6 {[%clk 0:00:28.5]} 25... Rxe6 {[%clk 0:00:35.7]} 26. Qb4
{[%clk 0:00:22.7]} 26... Qc7 {[%clk 0:00:22.5]} 27. Qd4 {[%clk 0:00:18.8]} 27...
Re8 {[%clk 0:00:21.2]} 28. Nd5 {[%clk 0:00:14.5]} 28... Nxd5 {[%clk 0:00:20.5]}
29. Rxe8# {[%clk 0:00:13.5]} 1-0

[Event "Late-Titled-Tuesday-Blitz-February-20-2024"]
[Site "Chess.com"]
[Date "2024.02.20"]
[Round "4"]
[White "ACollins05"]
[Black "vi_pranav"]
[Result "0-1"]
[WhiteElo "2588"]
[BlackElo "3007"]
[TimeControl "180+1"]
[EndTime "14:38:02 PST"]
[Termination "vi_pranav won on time"]

1. d4 {[%clk 0:03:00.9]} 1... Nf6 {[%clk 0:02:56.4]} 2. c4 {[%clk 0:03:00]} 2...
e6 {[%clk 0:02:54.8]} 3. Nf3 {[%clk 0:02:59.9]} 3... Nc6 {[%clk 0:02:54]} 4. Nc3
{[%clk 0:02:58.4]} 4... Bb4 {[%clk 0:02:54]} 5. Qc2 {[%clk 0:02:54.8]} 5... O-O
{[%clk 0:02:54.1]} 6. Bg5 {[%clk 0:02:54.1]} 6... d6 {[%clk 0:02:53.7]} 7. e3
{[%clk 0:02:53.8]} 7... h6 {[%clk 0:02:53.7]} 8. Bh4 {[%clk 0:02:53.4]} 8... e5
{[%clk 0:02:42.1]} 9. Be2 {[%clk 0:02:35.8]} 9... Re8 {[%clk 0:02:36.8]} 10. O-O
{[%clk 0:02:32.4]} 10... Bxc3 {[%clk 0:02:24.7]} 11. bxc3 {[%clk 0:02:14]} 11...
Bg4 {[%clk 0:02:07]} 12. c5 {[%clk 0:01:30.9]} 12... e4 {[%clk 0:01:59.8]} 13.
Ne1 {[%clk 0:01:26.9]} 13... Bxe2 {[%clk 0:01:58.1]} 14. Qxe2 {[%clk 0:01:27.8]}
14... dxc5 {[%clk 0:01:58.7]} 15. Qb5 {[%clk 0:01:24.9]} 15... cxd4 {[%clk
0:01:12.5]} 16. Qxb7 {[%clk 0:01:09.8]} 16... Re6 {[%clk 0:01:11.8]} 17. cxd4
{[%clk 0:00:33.6]} 17... Rb8 {[%clk 0:01:06.9]} 18. Qa6 {[%clk 0:00:33.4]} 18...
Nxd4 {[%clk 0:01:07.2]} 19. Qxa7 {[%clk 0:00:27.3]} 19... Ne2+ {[%clk
0:00:58.4]} 20. Kh1 {[%clk 0:00:26]} 20... Rb2 {[%clk 0:00:59.1]} 21. Qa3 {[%clk
0:00:22.2]} 21... Reb6 {[%clk 0:00:57]} 22. Bg3 {[%clk 0:00:11.7]} 22... Ng4
{[%clk 0:00:53.8]} 23. Qc5 {[%clk 0:00:06.8]} 23... Nxg3+ {[%clk 0:00:47.7]} 24.
hxg3 {[%clk 0:00:07.7]} 24... R6b5 {[%clk 0:00:31]} 25. Qc4 {[%clk 0:00:06.6]}
25... Qg5 {[%clk 0:00:30.8]} 26. Qxe4 {[%clk 0:00:04.1]} 26... Qh5+ {[%clk
0:00:30.9]} 0-1